[Event "Czech Championship 2022"]
[Site "Usti nad Labem"]
[Date "2022.05.17"]
[Round "4.6"]
[White "Kraus, Tomas"]
[Black "Delgerdalai, Bayarjavkhlan"]
[Result "1-0"]
[ECO "B52"]
[WhiteElo "2472"]
[BlackElo "2119"]
[Annotator "TA"]
[PlyCount "63"]
[EventDate "2022.05.12"]
[EventType "swiss"]
[EventCountry "CZE"]
[SourceTitle "playchess.com"]
[Source "ChessBase"]
[SourceQuality "1"]
[TimeControl "40/5400+30:1800+30"]

{[%evp 14,63,33,43,51,61,51,88,114,103,125,77,83,45,34,31,91,93,126,139,136,124,139,136,140,122,121,112,221,177,186,198,189,177,210,202,279,272,407,402,383,352,368,355,420,422,483,470,467,452,2455,2113]} 1. e4 {[%emt 0:00:02]} c5 {[%emt 0:00:08]} 2. Nf3 {[%emt 0:00:05]} d6 {[%emt 0:00:10]} 3. Bb5+ {[%emt 0:00:05]} Bd7 {[%emt 0:00:11]} 4. Bxd7+ {[%emt 0:00:06]} Nxd7 {[%emt 0:00:09]} 5. O-O {[%emt 0:00:05]} Ngf6 {[%emt 0:00:12]} 6. Qe2 {[%emt 0:00:17]} g6 {[%emt 0:00:48]} 7. c3 {[%emt 0:01:20][%cal Bc2c3,Bc3c4][%mdl 32]} Bg7 {[%emt 0:03:11]} 8. d4 {[%emt 0:01:13]} e6 {[%emt 0:02:58] B52: Sicilian: Moscow Variation with 3...Bd7.} 9. e5 {[%emt 0:05:27]} Nd5 {[%emt 0:10:45]} 10. exd6 {[%emt 0:08:48] [#]} Qb6 $146 {[%emt 0:12:20] White is better.} ({Predecessor:} 10... cxd4 11. Rd1 Qb6 12. Nxd4 O-O 13. Nb5 a6 14. N5a3 Qc6 15. c4 N5b6 16. Nc3 Rac8 {½-½ (47) Hoffman,G-Da Maia,V ICCF email 2001}) 11. c4 {[%emt 0:13:41]} Nb4 {[%emt 0:02:19]} 12. a3 {[%emt 0:09:19]} (12. dxc5 $142 Nxc5 13. Nc3) 12... Na6 $16 {[%emt 0:00:28]} 13. dxc5 {[%emt 0:13:10] White is more active.} Naxc5 {[%emt 0:04:45]} 14. Rd1 {[%emt 0:04:02]} Nb3 {[%emt 0:04:48]} (14... Rc8 $14) 15. Be3 {[%emt 0:01:01] White stays focused until the end.} Qa6 {[%emt 0:03:39]} 16. Ra2 $36 {[%emt 0:00:35][%mdl 2048] White is really pushing.} Rc8 {[%emt 0:01:06] [#]} 17. Nbd2 {[%emt 0:01:00]} Nxd2 {[%emt 0:01:24]} 18. Nxd2 {[%emt 0:02:28][%cal Bf3d2,Bd2e4,Be4d6][%mdl 32]} (18. Rxd2 $6 Qxc4 19. Ra1 Qxe2 20. Rxe2 O-O $11) (18. Qxd2 $6 Rxc4 19. Qd3 O-O $11) 18... O-O {[%emt 0:01:45]} 19. b3 {[%emt 0:06:53]} Qxd6 {[%emt 0:00:51]} 20. Ne4 {[%emt 0:00:33]} (20. Bxa7 b6 $14) 20... Qe7 {[%emt 0:09:19]} (20... Qc6 $16 {was called for.}) 21. Nd6 {[%emt 0:02:08]} ({Weaker is} 21. Bxa7 b6 $14) 21... Rb8 {[%emt 0:06:02]} 22. Bxa7 {[%emt 0:01:30]} Ra8 {[%emt 0:00:36]} 23. Be3 {[%emt 0:00:21][%cal Ba7e3,Be3h6,Bh6g5][%mdl 32]} f5 {[%emt 0:05:12]} 24. f3 {[%emt 0:01:10]} Be5 {[%emt 0:03:38]} 25. Rad2 {[%emt 0:05:27][%cal Ba2d2,Bd2d6,Bd6d7][%mdl 32]} ({Not} 25. Nxb7 Rfb8 $16) 25... Nf6 {[%emt 0:11:28]} (25... Bc3 $142 26. Nxf5 (26. Nxb7 Bxd2 27. Qxd2 Ne5 $16) 26... exf5) 26. Bh6 $18 {[%emt 0:05:08][%csl LRe5,LRf8]} Bxd6 {[%emt 0:00:25]} 27. Rxd6 {[%emt 0:01:01]} Rfe8 {[%emt 0:00:04]} 28. a4 {[%emt 0:02:11]} Ra5 {[%emt 0:03:13]} 29. Bg5 {[%emt 0:02:05]} Rc5 {[%emt 0:02:27] White is clearly winning.} 30. Qb2 {[%emt 0:02:49]} Rf8 {[%emt 0:00:36]} 31. Bxf6 {[%emt 0:03:21]} Rxf6 {[%emt 0:01:36]} (31... Qxf6 $142 32. Qxf6 Rxf6) 32. Rd7 {[%emt 0:00:23] Weighted Error Value: White=0.06 (flawless) /Black=0.32} 1-0

[Event "Czech Championship 2022"]
[Site "Usti nad Labem"]
[Date "2022.05.17"]
[Round "4.7"]
[White "Gnojek, Petr"]
[Black "Rubes, Jan"]
[Result "0-1"]
[ECO "E81"]
[WhiteElo "2302"]
[BlackElo "2386"]
[Annotator "TA"]
[PlyCount "108"]
[EventDate "2022.05.12"]
[EventType "swiss"]
[EventCountry "CZE"]
[SourceTitle "playchess.com"]
[Source "ChessBase"]
[SourceQuality "1"]
[TimeControl "40/5400+30:1800+30"]

{[%evp 24,108,0,0,0,-2,-6,-3,0,0,0,0,23,0,0,0,3,-20,-16,-14,-18,-42,-42,-56,-42,-43,-42,-39,-46,-52,-61,-63,-62,-62,-62,-114,-108,-112,-90,-106,-91,-107,-97,-120,-107,-131,-129,-115,-122,-135,-136,-430,-410,-325,-323,-317,-306,-316,-315,-314,-314,-303,-298,-431,-380,-587,-525,-1018,-953,-1525,-1258,-1338,-1405,-916,-764,-764,-763,-748,-747,-29958,-29958,-29964,-29966,-29971,-29972,-29965,-10264]} 1. d4 {[%emt 0:00:03]} Nf6 {[%emt 0:00:08]} 2. c4 {[%emt 0:00:09]} g6 {[%emt 0:00:14]} 3. Nc3 {[%emt 0:00:10]} Bg7 {[%emt 0:00:13]} 4. e4 {[%emt 0:00:15]} d6 {[%emt 0:00:11]} 5. f3 {[%emt 0:00:38]} O-O {[%emt 0:01:09]} 6. Be3 {[%emt 0:00:09]} c5 {[%emt 0:00:20]} 7. Nge2 {[%emt 0:00:53]} Nc6 {[%emt 0:00:33]} 8. Qd2 {[%emt 0:03:53]} Qa5 {[%emt 0:02:29]} 9. Rd1 {[%emt 0:08:28]} cxd4 {[%emt 0:00:57]} 10. Nxd4 {[%emt 0:00:05]} Nxd4 {[%emt 0:00:06]} 11. Bxd4 {[%emt 0:00:04]} Be6 {[%emt 0:00:05]} 12. Be2 {[%emt 0:09:24]} a6 {[%emt 0:00:48]} 13. O-O {[%emt 0:01:02]} Rfc8 {[%emt 0:00:05] E81: King's Indian: Sämisch: 6th move deviations (including 6 Be3 c6).} 14. Nd5 {[%emt 0:08:52]} Qxd2 {[%emt 0:00:18]} 15. Rxd2 {[%emt 0:00:04]} Bxd5 {[%emt 0:02:34] The position is equal.} 16. exd5 {[%emt 0:01:39]} Nd7 {[%emt 0:00:32]} 17. Be3 {[%emt 0:02:06]} a5 {[%emt 0:04:50] [#]} 18. f4 $146 {[%emt 0:15:10]} ({Predecessor:} 18. Rb1 h5 19. b3 Kh7 20. Kf2 Bh6 21. f4 Nf6 22. Bf3 a4 23. g3 axb3 24. axb3 {½-½ (45) Van Vliet,J (2216)-Rietman,F (2201) Hengelo 2004}) 18... Nc5 {[%emt 0:02:05]} 19. Rc2 {[%emt 0:02:34]} Na6 {[%emt 0:03:14][%cal Ob7b5]} 20. a3 {[%emt 0:06:58]} a4 {[%emt 0:00:56][%cal Ob7b5]} 21. Rfc1 {[%emt 0:03:09]} Nc5 {[%emt 0:00:21]} 22. Bxc5 {[%emt 0:01:16]} Rxc5 {[%emt 0:01:09]} 23. Bd3 {[%emt 0:01:36]} Bd4+ {[%emt 0:00:34]} 24. Kf1 {[%emt 0:00:36]} Kf8 {[%emt 0:25:38]} 25. Rd1 {[%emt 0:10:08][%cal Od3g6]} Bf6 {[%emt 0:02:24]} 26. Ke2 {[%emt 0:00:08]} Ra6 {[%emt 0:05:11]} 27. Kd2 {[%emt 0:02:28]} Rb6 {[%emt 0:00:20]} 28. Kc1 {[%emt 0:00:05]} Rb3 {[%emt 0:02:40][%cal Ob7b5]} 29. Bf1 {[%emt 0:00:17]} ({White should play} 29. Kb1 $15) 29... b5 $17 {[%emt 0:04:46] Black is more active.} 30. Rd3 {[%emt 0:00:37]} h5 {[%emt 0:14:17]} 31. Be2 {[%emt 0:05:22]} Kg7 {[%emt 0:05:20]} (31... bxc4 32. Rxb3 axb3 33. Rxc4 $15) 32. g3 {[%emt 0:04:54]} Kh6 {[%emt 0:06:32]} (32... bxc4 33. Rxb3 axb3 34. Rxc4 Rxd5 35. Rb4 $15) 33. h3 {[%emt 0:03:01]} Kg7 {[%emt 0:00:50]} (33... bxc4 34. Rxb3 axb3 35. Rxc4 $15) 34. g4 {[%emt 0:00:24]} hxg4 {[%emt 0:00:12]} (34... bxc4 35. Rxb3 axb3 36. Rxc4 $17) 35. hxg4 {[%emt 0:00:03]} g5 {[%emt 0:00:10]} (35... bxc4 36. Rxb3 axb3 37. Rxc4 $15) 36. f5 {[%emt 0:02:19]} ({Don't blunder} 36. Rxb3 $2 axb3 37. Rd2 gxf4 $19) 36... Be5 {[%emt 0:00:22]} (36... bxc4 37. Rxb3 axb3 38. Rxc4 $11) 37. Kb1 $2 {[%emt 0:04:49][%mdl 8192] Now White is beyond hope.} (37. cxb5 $17 {was worth a try.} Rxc2+ 38. Kxc2 Rxb2+ 39. Kd1) 37... bxc4 $19 {[%emt 0:05:42]} 38. Rxb3 {[%emt 0:00:06]} axb3 {[%emt 0:00:03][%mdl 4096] Endgame KRB-KRB} ({Not} 38... cxb3 39. Rxc5 dxc5 40. Bb5 $11) 39. Rd2 {[%emt 0:00:04]} c3 {[%emt 0:06:51]} 40. bxc3 {[%emt 0:00:05]} Bxc3 {[%emt 0:00:04]} ({Inferior is} 40... Rxc3 41. Rd3 $17) 41. Rd3 {[%emt 0:30:29]} b2 {[%emt 0:30:22]} 42. Rd1 {[%emt 0:04:26]} Kf6 {[%emt 0:04:12]} 43. Bf3 {[%emt 0:00:00]} (43. Bd3 $142) 43... Ke5 {[%emt 0:00:00] [#] And now ...Kf4 would win.} 44. Rf1 {[%emt 0:00:00]} (44. Be2 {might work better.}) 44... Kf4 {[%emt 0:00:00]} 45. Be2+ {[%emt 0:00:00]} Ke3 {[%emt 0:00:00]} 46. Bd1 {[%emt 0:00:00]} Be5 {[%emt 0:00:00] ( -> ...Rc1+)} 47. Bb3 {[%emt 0:00:00]} Ke2 {[%emt 0:00:00]} 48. Rg1 {[%emt 0:00:00]} Kf2 {[%emt 0:00:00]} 49. Rd1 {[%emt 0:00:00]} Kg3 {[%emt 0:00:00]} 50. Rg1+ {[%emt 0:00:00]} Kf4 {[%emt 0:00:00] [#] Threatens to win with ...Rc3.} 51. a4 {[%emt 0:00:00]} Rc3 {[%emt 0:00:00] Black mates.} 52. Ba2 {[%emt 0:00:00]} Ra3 {[%emt 0:00:00]} 53. Rf1+ {[%emt 0:00:00]} Kxg4 {[%emt 0:00:00]} 54. Bc4 {[%emt 0:00:00]} Rxa4 {[%emt 0:00:00] Weighted Error Value: White=0.59/Black=0.07 (flawless)} 0-1

[Event "Czech Championship 2022"]
[Site "Usti nad Labem"]
[Date "2022.05.17"]
[Round "4.8"]
[White "Nemec, Jachym"]
[Black "Buchcar, Tomas"]
[Result "1/2-1/2"]
[ECO "D43"]
[WhiteElo "2367"]
[BlackElo "2183"]
[Annotator "TA"]
[PlyCount "76"]
[EventDate "2022.05.12"]
[EventType "swiss"]
[EventCountry "CZE"]
[SourceTitle "playchess.com"]
[Source "ChessBase"]
[SourceQuality "1"]
[TimeControl "40/5400+30:1800+30"]

{[%evp 10,76,7,2,21,17,50,8,18,0,35,24,27,26,27,28,42,1,16,23,22,16,55,33,31,32,35,37,31,37,29,21,31,13,28,8,23,42,36,26,25,0,0,0,0,0,0,0,0,0,0,0,0,0,0,-81,-70,-72,-65,-93,-93,-93,-93,-106,-4,-14,-5,-14,0]} 1. d4 {[%emt 0:00:03]} d5 {[%emt 0:00:06]} 2. c4 {[%emt 0:00:04]} c6 {[%emt 0:00:05]} 3. Nf3 {[%emt 0:00:04]} Nf6 {[%emt 0:00:08]} 4. Qb3 {[%emt 0:00:06]} e6 {[%emt 0:01:22]} 5. Bg5 {[%emt 0:00:05]} Nbd7 {[%emt 0:00:26]} 6. Nc3 {[%emt 0:00:05]} a6 {[%emt 0:01:20] D43: Semi-Slav: 5 Bg5 h6.} (6... h6 $5 {[%cal Rh6g5]} 7. Bd2 b6 $11) 7. e3 {[%emt 0:03:51]} Qa5 {[%emt 0:02:18] [#]} 8. Bxf6 $146 {[%emt 0:03:32]} ({Predecessor:} 8. Rc1 Ne4 9. Bf4 g5 10. Bg3 h5 {½-½ (10) Mazurek,J (1704)-Safanowski,T (1832) Warsaw 2021}) 8... Nxf6 {[%emt 0:00:58]} 9. Bd3 {[%emt 0:00:10]} c5 {[%emt 0:02:40][%cal Ob7b5]} 10. cxd5 {[%emt 0:03:02]} Nxd5 {[%emt 0:00:43]} 11. O-O {[%emt 0:00:56]} cxd4 {[%emt 0:09:48]} 12. Nxd5 {[%emt 0:08:10]} Qxd5 {[%emt 0:00:30]} 13. Bc4 {[%emt 0:00:57]} Qh5 {[%emt 0:02:53]} 14. exd4 {[%emt 0:09:25] d5 is the strong threat.} Be7 {[%emt 0:24:56]} 15. Rfe1 {[%emt 1:07:30]} b5 {[%emt 0:06:45]} 16. Ne5 {[%emt 0:00:00][%cal Oc4b5] [#] And now Bxb5+! would win.} O-O {[%emt 0:03:55]} ({Don't take} 16... bxc4 17. Qa4+ Kf8 18. Qc6 $18) 17. Be2 {[%emt 0:00:00]} Qh4 {[%emt 0:02:19]} 18. Bf3 {[%emt 0:00:00]} Ra7 {[%emt 0:00:23]} 19. g3 {[%emt 0:00:00]} Qf6 {[%emt 0:03:06]} ({Don't play} 19... Qxd4 20. Nc6 Qb6 21. Nxa7 Qxa7 22. Rec1 $16) 20. Rac1 {[%emt 0:00:00]} Bd6 {[%emt 0:03:56]} 21. Re3 {[%emt 0:00:00]} Rc7 {[%emt 0:04:30]} 22. Rec3 {[%emt 0:00:00]} Rxc3 {[%emt 0:01:32]} 23. Qxc3 {[%emt 0:00:00]} h6 {[%emt 0:02:04]} 24. Be4 {[%emt 0:00:00] Threatens to win with Qxc8.} g6 {[%emt 0:01:24]} 25. Kg2 {[%emt 0:00:00]} b4 {[%emt 0:04:18]} 26. Qc4 {[%emt 0:00:00]} Bxe5 {[%emt 0:00:28]} 27. dxe5 {[%emt 0:00:00]} Qxe5 {[%emt 0:00:14]} 28. Qxb4 {[%emt 0:00:00]} Bd7 {[%emt 0:00:11] Hoping for ...Rb8.} 29. Bf3 {[%emt 0:00:00]} Rb8 {[%emt 0:12:46]} 30. Qd2 {[%emt 0:00:00]} Qxb2 {[%emt 0:00:55]} 31. Rc2 {[%emt 0:00:00]} Qb1 {[%emt 0:00:09][%cal Oh6h5]} 32. Be4 {[%emt 0:00:00] [#]} (32. Rc7 $11 {keeps the balance.} Bb5 33. Rc1) 32... Qb4 $1 $17 {[%emt 0:00:11]} 33. Qe3 {[%emt 0:00:00]} Rc8 {[%emt 0:01:06]} 34. Rxc8+ {[%emt 0:00:00]} Bxc8 {[%emt 0:00:01]} 35. a3 {[%emt 0:00:39]} Qc4 {[%emt 0:01:15]} 36. Bf3 {[%emt 0:00:21]} Kg7 {[%emt 0:01:37]} ({Black should try} 36... Bd7 $17 37. g4 Bc6 38. Bxc6 Qxc6+ 39. f3 Qd5) 37. Qe5+ $1 $11 {[%emt 0:00:05]} Kh7 {[%emt 0:00:25]} 38. h4 $1 {[%emt 0:00:29]} h5 {[%emt 0:03:36] Weighted Error Value: White=0.12 (very precise) /Black=0.13 (very precise)} 1/2-1/2

[Event "Czech Championship 2022"]
[Site "Usti nad Labem"]
[Date "2022.05.17"]
[Round "4.9"]
[White "Krejci, Jan"]
[Black "Krivanek, Vladimir"]
[Result "1-0"]
[ECO "B90"]
[WhiteElo "2520"]
[BlackElo "2180"]
[Annotator "TA"]
[PlyCount "93"]
[EventDate "2022.05.12"]
[EventType "swiss"]
[EventCountry "CZE"]
[SourceTitle "playchess.com"]
[Source "ChessBase"]
[SourceQuality "1"]
[TimeControl "40/5400+30:1800+30"]

{[%evp 11,93,14,22,24,31,16,14,13,41,49,45,45,50,43,43,45,36,42,47,54,45,41,49,59,47,39,34,41,42,27,24,24,35,17,15,0,0,0,0,-5,-2,-12,64,60,344,320,312,320,316,315,309,238,233,233,385,385,387,383,377,368,366,379,391,391,389,372,447,440,429,429,537,381,314,293,677,679,665,664,713,703,5077,3113,1320,1211]} 1. Nf3 {[%emt 0:00:03]} g6 {[%emt 0:02:30]} 2. e4 {[%emt 0:00:45]} c5 {[%emt 0:01:49]} 3. d4 {[%emt 0:00:48]} cxd4 {[%emt 0:01:31]} 4. Nxd4 {[%emt 0:02:29]} Nf6 {[%emt 0:02:39]} 5. Nc3 {[%emt 0:00:06]} d6 {[%emt 0:01:16]} 6. Bc4 {[%emt 0:01:01]} a6 {[%emt 0:01:55]} 7. O-O {[%emt 0:00:50] B90: Sicilian Najdorf: Unusual White 6th moves, 6 Be3 Ng4 and 6 Be3 e5.} Bg7 {[%emt 0:04:37]} 8. Re1 {[%emt 0:00:15]} O-O {[%emt 0:03:20]} 9. Bg5 {[%emt 0:00:19] The position is equal.} Qc7 {[%emt 0:03:12]} 10. Bb3 {[%emt 0:01:20]} e6 {[%emt 0:02:57]} 11. Qd2 {[%emt 0:01:10]} Nc6 {[%emt 0:12:32]} 12. Rad1 {[%emt 0:06:49] [#]} Nxd4 $146 {[%emt 0:18:33]} ({Predecessor:} 12... Ne7 13. Bh6 b6 14. Bxg7 Kxg7 15. Nf3 Ne8 16. h4 Qc5 17. Na4 Qc7 18. Qd4+ e5 19. Qxb6 Qxb6 20. Nxb6 Rb8 21. Nc4 {1-0 (21) Meshcheriakova,E (2257)-Lengyel,I (2091) Salgotarjan 2003}) 13. Qxd4 {[%emt 0:00:08]} Ne8 {[%emt 0:04:36]} 14. Qc4 {[%emt 0:06:47]} Qxc4 {[%emt 0:03:36]} 15. Bxc4 {[%emt 0:00:01]} b5 {[%emt 0:01:49]} 16. Bb3 {[%emt 0:01:17]} Ra7 {[%emt 0:00:25] Inhibits Be7.} 17. Rd3 {[%emt 0:02:40]} Rd7 {[%emt 0:02:53]} 18. Bf4 {[%emt 0:10:48]} Bf6 {[%emt 0:04:49]} 19. Red1 {[%emt 0:01:43]} Be7 {[%emt 0:02:21]} 20. a4 {[%emt 0:01:07]} b4 {[%emt 0:02:30]} 21. Ne2 {[%emt 0:00:05]} Rc7 {[%emt 0:01:17]} 22. f3 {[%emt 0:09:16]} a5 {[%emt 0:02:07]} 23. c4 {[%emt 0:11:34]} Ba6 {[%emt 0:03:20]} 24. Rc1 {[%emt 0:00:05]} e5 {[%emt 0:04:31]} 25. Bh6 {[%emt 0:04:58]} Ng7 {[%emt 0:00:17]} 26. Rd5 {[%emt 0:00:03][%cal Bd3d5,Bd5a5,Ba5a8][%mdl 32]} Rfc8 {[%emt 0:05:07]} (26... Rc5 $11) 27. Rxa5 $14 {[%emt 0:37:33] White is more active.} Bxc4 {[%emt 0:01:01][%mdl 8192] Black cannot hold the game after this.} (27... Ne6 $14) 28. Rxc4 {[%emt 0:00:00]} Rxc4 {[%emt 0:00:07]} 29. Bxc4 {[%emt 0:00:00]} Rxc4 {[%emt 0:00:09]} 30. Ra8+ {[%emt 0:00:00]} Bf8 {[%emt 0:00:04]} 31. b3 {[%emt 0:00:00]} Rc2 {[%emt 0:03:22] [#]} 32. Nc1 {[%emt 0:00:00] Threatens to win with a5.} f6 $2 {[%emt 0:01:24]} (32... Ne6 {was worth a try.} 33. Nd3 f5) 33. Nd3 $18 {[%emt 0:00:00]} Rc3 {[%emt 0:02:56]} 34. Nxb4 {[%emt 0:00:00]} Rxb3 {[%emt 0:00:19] White must now prevent ...Rb1+.} 35. Nd5 {[%emt 0:00:00]} f5 {[%emt 0:01:06]} 36. a5 {[%emt 0:00:00][%cal Ba4a5,Ba5a6,Ba6a7][%mdl 32]} Ne6 {[%emt 0:00:38]} 37. a6 {[%emt 0:00:00]} Ra3 {[%emt 0:00:34]} 38. a7 {[%emt 0:00:00]} Kf7 {[%emt 0:00:27]} 39. Bxf8 {[%emt 0:00:00]} Ra1+ {[%emt 0:00:48]} 40. Kf2 {[%emt 0:00:00]} Ra2+ {[%emt 0:00:20]} 41. Ke1 {[%emt 0:11:23]} Ra1+ {[%emt 0:06:10]} 42. Kd2 {[%emt 0:00:00]} Ra2+ $2 {[%emt 0:00:14]} (42... Nxf8 43. Nc7 Nd7) 43. Kc3 {[%emt 0:00:00] White is clearly winning.} Nxf8 {[%emt 0:00:19]} 44. Nb4 {[%emt 0:00:00]} Ra5 {[%emt 0:01:26]} 45. Nc6 {[%emt 0:00:00]} Rc5+ {[%emt 0:01:00]} 46. Kd2 {[%emt 0:00:00][%cal Oa8f8] [#] White wants to mate with Rxf8+!} Nd7 {[%emt 0:00:28]} 47. Rb8 {[%emt 0:00:00] Weighted Error Value: White=0.10 (very precise) /Black=0.39} 1-0

[Event "Czech Championship 2022"]
[Site "Usti nad Labem"]
[Date "2022.05.17"]
[Round "4.10"]
[White "Rasik, Vitezslav"]
[Black "Bouska, Jiri"]
[Result "1-0"]
[ECO "B27"]
[WhiteElo "2433"]
[BlackElo "2117"]
[Annotator "TA"]
[PlyCount "69"]
[EventDate "2022.05.12"]
[EventType "swiss"]
[EventCountry "CZE"]
[SourceTitle "playchess.com"]
[Source "ChessBase"]
[SourceQuality "1"]
[TimeControl "40/5400+30:1800+30"]

{[%evp 14,69,0,14,28,7,26,26,26,28,28,26,16,14,23,28,45,68,75,76,73,59,66,55,54,43,34,0,39,41,29,40,52,56,39,12,14,14,14,11,193,162,352,335,339,340,337,292,480,485,452,381,29979,29981,29990,29991,29996,628]} 1. e4 {[%emt 0:00:03]} c5 {[%emt 0:00:07]} 2. Nf3 {[%emt 0:00:10]} g6 {[%emt 0:00:06]} 3. d4 {[%emt 0:01:05]} cxd4 {[%emt 0:00:07]} 4. Qxd4 {[%emt 0:00:08]} Nf6 {[%emt 0:00:06]} 5. Nc3 {[%emt 0:00:32]} Nc6 {[%emt 0:00:08]} 6. Qa4 {[%emt 0:00:29]} d6 {[%emt 0:17:53]} 7. e5 {[%emt 0:00:10]} dxe5 {[%emt 0:02:08]} 8. Nxe5 {[%emt 0:00:18]} Bd7 {[%emt 0:00:20] B27: Sicilian: 2 Nf3, unusual Black 2nd moves.} 9. Nxd7 {[%emt 0:00:32]} Qxd7 {[%emt 0:01:17]} 10. Be3 {[%emt 0:00:44]} Bg7 {[%emt 0:01:28] White has an edge.} 11. Rd1 {[%emt 0:00:24]} Qc8 {[%emt 0:15:56]} 12. Be2 {[%emt 0:00:24]} O-O {[%emt 0:00:21]} 13. O-O {[%emt 0:00:17]} a6 {[%emt 0:06:12]} 14. Qb3 {[%emt 0:08:48]} Qc7 {[%emt 0:22:21] [#]} 15. Bb6 $146 {[%emt 0:09:33] A strong pair of Bishops.} ({Predecessor:} 15. Nd5 Nxd5 16. Rxd5 e6 17. Bb6 Qf4 18. g3 Qf6 19. Rd7 Qxb2 20. Qxb2 Bxb2 {½-½ (45) Jovanovic,Z (2526)-Rosic,S (2239) Bosnjaci 2017}) 15... Qf4 {[%emt 0:01:52]} 16. g3 {[%emt 0:07:12]} Qf5 {[%emt 0:05:24]} 17. Nd5 {[%emt 0:08:57]} Nxd5 {[%emt 0:05:08]} 18. Rxd5 {[%emt 0:08:44]} Qe6 {[%emt 0:03:26]} 19. Bf3 {[%emt 0:04:08]} Ne5 {[%emt 0:01:59]} 20. Be2 {[%emt 0:09:34]} Rac8 {[%emt 0:04:54][%cal Oc8c2]} (20... Nc6 $5 {[%cal Re6e2]} 21. Rd2 Qxb3 22. cxb3 e6 $14) 21. Rfd1 {[%emt 0:05:52]} Rc6 {[%emt 0:01:22]} 22. Be3 {[%emt 0:00:58]} Ng4 {[%emt 0:05:05]} 23. Bxg4 {[%emt 0:01:25]} Qxg4 {[%emt 0:00:54]} 24. Qxb7 {[%emt 0:06:10]} Rxc2 {[%emt 0:00:21]} 25. Qxe7 {[%emt 0:04:08]} Rxb2 {[%emt 0:00:39]} 26. Rd8 {[%emt 0:00:20][%cal Bd5d8,Bd8b8,Bb8b7][%mdl 32] aiming for Bc5.} Rb8 $2 {[%emt 0:00:51] [#] Black cannot hold the game after this.} (26... Qf3 $11) 27. R1d4 $1 $18 {[%emt 0:01:24] And now Rxb8 would win.} Qf5 $2 {[%emt 0:03:02] [#]} (27... Qh5) 28. Qxf8+ $3 {[%emt 0:04:40][%mdl 512]} Bxf8 {[%emt 0:00:12]} 29. Rxb8 {[%emt 0:00:01]} Kg7 {[%emt 0:00:26] Inhibits Bh6+.} 30. Rb7 {[%emt 0:03:41] Threatens to win with h4.} Qa5 $2 {[%emt 0:00:43]} (30... g5 31. Rdd7 g4) 31. Rdd7 {[%emt 0:00:49]} Qxa2 {[%emt 0:00:28]} 32. Bd4+ {[%emt 0:00:01]} Kh6 $2 {[%emt 0:00:39]} (32... Kg8 $18 33. Rd8 Qa5) 33. Rxf7 {[%emt 0:00:13] White mates.} Qa5 {[%emt 0:00:29]} 34. Be3+ {[%emt 0:01:24]} g5 {[%emt 0:00:32]} 35. Rf6+ {[%emt 0:00:27] Weighted Error Value: White=0.04 (flawless) /Black=0.55} 1-0